fUST/lending_fUST_20240811
["ID","MTS","AMOUNT","RATE_DAILY","PERIOD"]
[334622293,1723356649942,-1283.38,0.00020821,3]
[334622294,1723356649953,-277.233483,0.00020821,2]
[334622295,1723356649964,-701.53,0.00020821,3]
[334622296,1723356649976,-514.7384477,0.00020821,3]
[334622297,1723356649987,-523.76010816,0.00020821,3]
[334622298,1723356649996,-285.45758427,0.00020821,3]
[334622299,1723356650007,-509.50532686,0.00020821,3]
[334622300,1723356650019,-647.38,0.00020821,3]
[334622301,1723356650028,-207.31639339,0.00020821,3]
[334622302,1723356650039,-500.0,0.00020821,3]
[334622303,1723356650050,-651.88,0.00020821,3]
[334622304,1723356650060,-276.9895369,0.00020821,3]
[334622305,1723356650070,-2445.87,0.00020821,3]
[334622306,1723356650079,-500.0,0.00020821,3]
[334622307,1723356650089,-434.84838924,0.00020821,3]
[334622308,1723356650098,-500.0,0.00020821,3]
[334622309,1723356650108,-1232.07,0.00020821,3]
[334622310,1723356650117,-500.0,0.00020821,3]
[334622311,1723356650126,-957.17,0.00020821,3]
[334622312,1723356650136,-500.0,0.00020821,3]
[334622313,1723356650145,-170.244031,0.00020821,2]
[334622314,1723356650154,-170.244031,0.00020821,2]
[334622315,1723356650163,-170.244031,0.00020821,2]
[334622316,1723356650172,-500.0,0.00020821,3]
[334622317,1723356650181,-694.6,0.00020821,3]
[334622318,1723356650190,-500.0,0.00020821,3]
[334622319,1723356650199,-508.02683301,0.00020821,3]
[334622320,1723356650208,-500.0,0.00020821,3]
[334622321,1723356650218,-500.0,0.00020821,3]
[334622322,1723356650227,-170.244031,0.00020821,2]
[334622323,1723356650237,-170.244031,0.00020821,2]
[334622324,1723356650246,-170.244031,0.00020821,2]
[334622325,1723356650255,-1011.76,0.00020821,3]
[334622326,1723356650265,-500.0,0.00020821,3]
[334622327,1723356650274,-500.0,0.00020821,3]
[334622328,1723356650284,-500.0,0.00020821,3]
[334622329,1723356650293,-823.0,0.00020895,2]
[334622330,1723356650302,-150.112233,0.000209,3]
[334622331,1723356650312,-151.0,0.00020946,2]
[334622332,1723356650322,-2605.825964,0.00020999,2]
[334622333,1723356650331,-906.44622373,0.00021,2]
[334622334,1723356650348,-285.0,0.00021,2]
[334622335,1723356650358,-3000.0,0.00021,2]
[334622336,1723356650369,-3000.0,0.0002101,2]
[334622337,1723356650379,-3000.0,0.0002102,2]
[334622338,1723356650390,-3000.0,0.0002103,2]
[334622339,1723356650400,-569.83076,0.0002103,2]
[334622340,1723356650410,-569.83076,0.0002103,2]
[334622341,1723356650421,-151.0,0.0002103,2]
[334622342,1723356650431,-3000.0,0.0002104,2]
[334622343,1723356650443,-3000.0,0.0002105,2]
[334622344,1723356650452,-3000.0,0.0002106,2]
[334622345,1723356650462,-170.244031,0.0002106,2]
[334622346,1723356650474,-170.244031,0.0002106,2]
[334622347,1723356650485,-3000.0,0.0002107,2]
[334622348,1723356650495,-200.0,0.00021073,2]
[334622349,1723356650504,-150.0,0.00021073,2]
[334622350,1723356650514,-200.0,0.00021073,2]
[334622351,1723356650524,-200.0,0.00021073,2]
[334622352,1723356650535,-200.0,0.00021073,2]
[334622353,1723356650544,-200.0,0.00021073,2]
[334622354,1723356650555,-200.0,0.00021073,2]
[334622355,1723356650564,-3000.0,0.0002108,2]
[334622356,1723356650574,-3000.0,0.0002109,2]
[334622357,1723356650584,-205.30263659,0.00021095,3]
[334622358,1723356650594,-500.0,0.00021095,3]
[334622359,1723356650603,-500.0,0.00021095,3]
[334622360,1723356650612,-500.0,0.00021095,3]
[334622361,1723356650622,-500.0,0.00021095,3]
[334622362,1723356650631,-500.0,0.00021095,2]
[334622363,1723356650641,-510.69151411,0.00021095,3]
[334622364,1723356650651,-500.0,0.00021095,3]
[334622365,1723356650661,-519.35418777,0.00021095,3]
[334622366,1723356650671,-500.0,0.00021095,3]
[334622367,1723356650682,-500.0,0.00021095,3]
[334622368,1723356650692,-500.0,0.00021095,3]
[334622369,1723356650702,-526.99853023,0.00021095,3]
[334622370,1723356650712,-500.0,0.00021095,3]
[334622371,1723356650722,-500.0,0.00021095,3]
[334622372,1723356650733,-500.0,0.00021095,3]
[334622373,1723356650744,-500.0,0.00021095,3]
[334622374,1723356650753,-500.0,0.00021095,3]
[334622375,1723356650763,-500.0,0.00021095,3]
[334622376,1723356650774,-500.0,0.00021095,3]
[334622377,1723356650785,-500.0,0.00021095,3]
[334622378,1723356650794,-333.67149681,0.00021095,3]
[334622379,1723356650804,-500.0,0.00021095,3]
[334622380,1723356650813,-500.0,0.00021095,3]
[334622381,1723356650822,-500.0,0.00021095,3]
[334622382,1723356650831,-517.65,0.00021095,3]
[334622383,1723356650841,-500.0,0.00021095,3]
[334622384,1723356650850,-500.0,0.00021095,3]
[334622385,1723356650860,-500.0,0.00021095,3]
[334622386,1723356650870,-500.0,0.00021095,3]
[334622387,1723356650881,-515.59029739,0.00021095,3]
[334622388,1723356650891,-500.0,0.00021095,3]
[334622389,1723356650903,-500.0,0.00021095,3]
[334622390,1723356650912,-500.0,0.00021095,3]
[334622391,1723356650922,-500.0,0.00021095,3]
[334622392,1723356650931,-509.94788976,0.00021095,3]
[334622393,1723356650942,-513.34254633,0.00021095,3]
[334622394,1723356650951,-500.0,0.00021095,3]
[334622395,1723356650960,-500.0,0.00021095,3]
[334622396,1723356650970,-500.0,0.00021095,3]
[334622397,1723356650982,-500.0,0.00021095,3]
[334622398,1723356650991,-500.0,0.00021095,3]
[334622399,1723356651001,-500.0,0.00021095,3]
[334622400,1723356651012,-500.0,0.00021095,3]
[334622401,1723356651023,-500.0,0.00021095,3]
[334622402,1723356651035,-582.18,0.00021095,3]
[334622403,1723356651046,-581.22,0.00021095,3]
[334622404,1723356651056,-500.0,0.00021095,3]
[334622405,1723356651066,-326.02395482,0.00021095,3]
[334622406,1723356651077,-944.68,0.00021095,3]
[334622407,1723356651194,-729.05,0.00021095,3]
[334622408,1723356651206,-500.0,0.00021095,3]
[334622409,1723356651217,-500.0,0.00021095,3]
[334622410,1723356651229,-500.0,0.00021095,3]
[334622411,1723356651239,-500.0,0.00021095,3]
[334622412,1723356651250,-966.54,0.00021095,3]
[334622413,1723356651261,-500.0,0.00021095,3]
[334622414,1723356651271,-500.0,0.00021095,3]
[334622415,1723356651283,-500.0,0.00021095,3]
[334622416,1723356651294,-1002.09,0.00021095,3]
[334622417,1723356651304,-500.0,0.00021095,3]
[334622418,1723356651313,-500.0,0.00021095,3]
[334622419,1723356651322,-500.0,0.00021095,3]
[334622420,1723356651331,-500.0,0.00021095,3]
[334622421,1723356651340,-276.601182,0.00021095,2]
[334622422,1723356651351,-276.601182,0.00021095,2]
[334622423,1723356651360,-276.601182,0.00021095,2]
[334622424,1723356651370,-276.601182,0.00021095,2]
[334622425,1723356651381,-500.0,0.00021095,3]
[334622426,1723356651392,-500.0,0.00021095,3]
[334622427,1723356651402,-780.95,0.00021095,3]
[334622428,1723356651411,-500.0,0.00021095,3]
[334622429,1723356651421,-500.0,0.00021095,3]
[334622430,1723356651431,-500.0,0.00021095,3]
[334622431,1723356651441,-160.83998048,0.00021095,3]
[334622432,1723356651451,-500.0,0.00021095,3]
[334622433,1723356651461,-500.0,0.00021095,3]
[334622434,1723356651471,-500.0,0.00021095,3]
[334622435,1723356651482,-917.55,0.00021095,3]
[334622436,1723356651492,-500.0,0.00021095,3]
[334622437,1723356651501,-500.0,0.00021095,3]
[334622438,1723356651510,-583.38,0.00021095,3]
[334622439,1723356651519,-980.25,0.00021095,3]
[334622440,1723356651529,-500.0,0.00021095,3]
[334622441,1723356651538,-518.64091493,0.00021095,3]
[334622442,1723356651548,-500.0,0.00021095,3]
[334622443,1723356651557,-500.0,0.00021095,3]
[334622444,1723356651567,-500.0,0.00021095,3]
[334622445,1723356651576,-891.13,0.00021095,3]
[334622446,1723356651587,-519.39226522,0.00021095,3]
[334622447,1723356651596,-500.0,0.00021095,3]
[334622448,1723356651605,-500.0,0.00021095,3]
[334622449,1723356651614,-500.0,0.00021095,3]
[334622450,1723356651623,-500.0,0.00021095,3]
[334622451,1723356651632,-1127.0,0.00021095,3]
[334622452,1723356651641,-500.0,0.00021095,3]
[334622453,1723356651657,-570.894169,0.00021095,2]
[334622454,1723356651667,-570.894169,0.00021095,2]
[334622455,1723356651676,-500.0,0.00021095,3]
[334622456,1723356651686,-570.894169,0.00021095,2]
[334622457,1723356651695,-570.894169,0.00021095,2]
[334622458,1723356651704,-500.0,0.00021095,3]
[334622459,1723356651714,-500.0,0.00021095,3]
[334622460,1723356651723,-500.0,0.00021095,3]
[334622461,1723356651732,-827.5,0.00021095,3]
[334622462,1723356651741,-863.73,0.00021095,3]
[334622463,1723356651751,-500.0,0.00021095,3]
[334622464,1723356651760,-820.01,0.00021095,3]
[334622465,1723356651769,-1845.89,0.00021095,3]
[334622466,1723356651778,-500.0,0.00021095,3]
[334622467,1723356651787,-500.0,0.00021095,3]
[334622468,1723356651796,-757.13,0.00021095,3]
[334622469,1723356651805,-500.0,0.00021095,3]
[334622470,1723356651814,-664.29,0.00021095,3]
[334622471,1723356651823,-778.64,0.00021095,3]
[334622472,1723356651834,-593.91,0.00021095,3]
[334622473,1723356651843,-500.0,0.00021095,3]
[334622474,1723356651852,-500.0,0.00021095,3]
[334622475,1723356651861,-500.0,0.00021095,3]
[334622476,1723356651870,-1310.14,0.00021095,3]
[334622477,1723356651878,-788.05,0.00021095,3]
[334622478,1723356651887,-500.0,0.00021095,3]
[334622479,1723356651898,-500.0,0.00021095,3]
[334622480,1723356651910,-500.0,0.00021095,3]
[334622481,1723356651919,-500.0,0.00021095,3]
[334622482,1723356651929,-612.66,0.00021095,3]
[334622483,1723356651938,-1635.37,0.00021095,3]
[334622484,1723356651951,-500.0,0.00021095,3]
[334622485,1723356651961,-1398.62,0.00021095,3]
[334622486,1723356651972,-500.0,0.00021095,3]
[334622487,1723356651985,-500.0,0.00021095,3]
[334622488,1723356651995,-500.0,0.00021095,3]
[334622489,1723356652004,-457.86721893,0.00021095,3]
[334622490,1723356652014,-500.0,0.00021095,3]
[334622491,1723356652025,-500.0,0.00021095,3]
[334622492,1723356652036,-500.0,0.00021095,3]
[334622493,1723356652047,-500.0,0.00021095,3]
[334622494,1723356652056,-603.81,0.00021095,3]
[334622495,1723356652065,-500.0,0.00021095,3]
[334622496,1723356652076,-593.46,0.00021095,3]
[334622497,1723356652087,-500.0,0.00021095,3]
[334622498,1723356652100,-500.0,0.00021095,3]
[334622499,1723356652109,-1248.66,0.00021095,3]
[334622500,1723356652119,-558.9,0.00021095,3]
[334622501,1723356652128,-500.0,0.00021095,3]
[334622502,1723356652137,-631.6895163,0.00021095,3]
[334622503,1723356652147,-619.36,0.00021095,3]
[334622504,1723356652155,-500.0,0.00021095,3]
[334622505,1723356652165,-584.43,0.00021095,2]
[334622506,1723356652175,-506.18,0.00021095,3]
[334622507,1723356652185,-777.28,0.00021095,3]
[334622508,1723356652195,-656.33,0.00021095,3]
[334622509,1723356652205,-500.0,0.00021095,3]
[334622510,1723356652214,-713.51,0.00021095,3]
[334622511,1723356652224,-500.0,0.00021095,3]
[334622512,1723356652235,-1413.55,0.00021095,3]
[334622513,1723356652247,-500.0,0.00021095,3]
[334622514,1723356652258,-517.59153495,0.00021095,3]
[334622515,1723356652267,-594.34238962,0.00021095,3]
[334622516,1723356652281,-500.0,0.00021095,3]
[334622517,1723356652298,-500.0,0.00021095,3]
[334622518,1723356652311,-234.46521245,0.00021095,3]
[334622519,1723356652326,-758.03,0.00021095,3]
[334622520,1723356652343,-500.0,0.00021095,3]
[334622521,1723356652359,-500.0,0.00021095,3]
[334622522,1723356652374,-505.33,0.00021095,3]
[334622523,1723356652387,-500.0,0.00021095,3]
[334622524,1723356652400,-701.39,0.00021095,3]
[334622525,1723356652415,-333.58899067,0.00021095,3]
[334622526,1723356652430,-500.0,0.00021095,3]
[334622527,1723356652444,-1140.13,0.00021095,3]
[334622528,1723356652461,-579.65,0.00021095,3]
[334622529,1723356652474,-500.0,0.00021095,3]
[334622530,1723356652490,-500.0,0.00021095,3]
[334622531,1723356652505,-500.0,0.00021095,3]
[334622532,1723356652519,-500.0,0.00021095,3]
[334622533,1723356652534,-500.0,0.00021095,3]
[334622534,1723356652548,-367.16388124,0.00021095,3]
[334622535,1723356652563,-500.0,0.00021095,3]
[334622536,1723356652574,-500.0,0.00021095,3]
[334622537,1723356652587,-1130.52,0.00021095,3]
[334622538,1723356652603,-500.0,0.00021095,3]
[334622539,1723356652614,-690.19,0.00021095,3]
[334622540,1723356652625,-500.0,0.00021095,3]
[334622541,1723356652639,-500.0,0.00021095,3]
[334622542,1723356652651,-500.0,0.00021095,3]
[334622543,1723356652663,-341.80828,0.00021095,2]
[334622544,1723356652676,-341.80828,0.00021095,2]
[334622545,1723356652687,-341.80828,0.00021095,2]
[334622546,1723356652700,-585.87,0.00021095,3]
[334622547,1723356652712,-500.0,0.00021095,3]
[334622548,1723356652725,-341.80828,0.00021095,2]
[334622549,1723356652737,-341.80828,0.00021095,2]
[334622550,1723356652750,-341.80828,0.00021095,2]
[334622551,1723356652762,-260.58144566,0.00021095,3]
[334622552,1723356652774,-500.0,0.00021095,3]
[334622553,1723356652786,-885.98,0.00021095,3]
[334622554,1723356652799,-500.0,0.00021095,3]
[334622555,1723356652812,-525.9794324,0.00021095,3]
[334622556,1723356652826,-500.0,0.00021095,3]
[334622557,1723356652841,-500.0,0.00021095,3]
[334622558,1723356652855,-500.0,0.00021095,3]
[334622559,1723356652868,-151.0,0.00021095,2]
[334622560,1723356652883,-151.0,0.00021095,2]
[334622561,1723356652895,-151.0,0.00021095,2]
[334622562,1723356652912,-500.0,0.00021095,3]
[334622563,1723356652927,-500.0,0.00021095,3]
[334622564,1723356652940,-1313.92,0.00021095,3]
[334622565,1723356652954,-1724.26,0.00021095,3]
[334622566,1723356652968,-1210.92,0.00021095,3]
[334622567,1723356652983,-500.0,0.00021095,3]
[334622568,1723356652997,-500.0,0.00021095,3]
[334622569,1723356653010,-724.56,0.00021095,3]
[334622570,1723356653024,-1250.81,0.00021095,3]
[334622571,1723356653039,-500.0,0.00021095,3]
[334622572,1723356653051,-500.0,0.00021095,3]
[334622573,1723356653064,-500.0,0.00021095,3]
[334622574,1723356653076,-500.0,0.00021095,3]
[334622575,1723356653090,-500.0,0.00021095,3]
[334622576,1723356653102,-500.0,0.00021095,3]
[334622577,1723356653115,-500.0,0.00021095,3]
[334622578,1723356653127,-500.0,0.00021095,3]
[334622579,1723356653139,-500.0,0.00021095,3]
[334622580,1723356653151,-500.0,0.00021095,3]
[334622581,1723356653164,-1842.7,0.00021095,3]
[334622582,1723356653177,-1162.59,0.00021095,3]
[334622583,1723356653191,-500.0,0.00021095,3]
[334622584,1723356653205,-869.23,0.00021095,3]
[334622585,1723356653217,-2300.82,0.00021095,3]
[334622586,1723356653230,-647.5,0.00021095,2]
[334622587,1723356653244,-647.5,0.00021095,2]
[334622588,1723356653256,-647.5,0.00021095,2]
[334622589,1723356653269,-647.5,0.00021095,2]
[334622590,1723356653285,-514.63,0.00021095,3]
[334622591,1723356653298,-3132.41,0.00021095,3]
[334622592,1723356653310,-500.0,0.00021095,3]
[334622593,1723356653323,-500.0,0.00021095,3]
[334622594,1723356653336,-500.0,0.00021095,3]
[334622595,1723356653348,-500.0,0.00021095,3]
[334622596,1723356653361,-500.0,0.00021095,3]
[334622597,1723356653375,-2160.97,0.00021095,3]
[334622598,1723356653388,-500.0,0.00021095,3]
[334622599,1723356653401,-500.0,0.00021095,3]
[334622600,1723356653414,-1800.52,0.00021095,3]
[334622601,1723356653429,-729.4,0.00021095,3]
[334622602,1723356653443,-2209.57,0.00021095,3]
[334622603,1723356653457,-192.984059,0.00021095,2]
[334622604,1723356653471,-192.984059,0.00021095,2]
[334622605,1723356653484,-1994.59,0.00021095,3]
[334622606,1723356653498,-500.0,0.00021095,3]
[334622607,1723356653513,-1134.46,0.00021095,3]
[334622608,1723356653527,-192.984059,0.00021095,2]
[334622609,1723356653540,-192.984059,0.00021095,2]
[334622610,1723356653553,-500.0,0.00021095,3]
[334622611,1723356653567,-500.0,0.00021095,3]
[334622612,1723356653582,-515.11044881,0.00021095,3]
[334622613,1723356653595,-500.0,0.00021095,3]
[334622614,1723356653604,-500.0,0.00021095,3]
[334622615,1723356653615,-515.38813262,0.00021095,3]
[334622616,1723356653626,-500.0,0.00021095,3]
[334622617,1723356653636,-602.41,0.00021095,3]
[334622618,1723356653645,-2160.65,0.00021095,3]
[334622619,1723356653658,-419.421935,0.00021095,2]
[334622620,1723356653669,-419.421935,0.00021095,2]
[334622621,1723356653856,-419.421935,0.00021095,2]
[334622622,1723356653882,-419.421935,0.00021095,2]
[334622623,1723356653894,-419.421935,0.00021095,2]
[334622624,1723356653910,-419.421935,0.00021095,2]
[334622625,1723356653921,-745.98,0.00021095,3]
[334622626,1723356653931,-517.45,0.00021095,3]
[334622627,1723356653941,-500.0,0.00021095,3]
[334622628,1723356653950,-11419.02,0.00021095,3]
[334622629,1723356653960,-500.0,0.00021095,3]
[334622630,1723356653973,-564.59,0.00021095,3]
[334622631,1723356653983,-1821.13,0.00021095,3]
[334622632,1723356653995,-500.0,0.00021095,3]
[334622633,1723356654005,-500.0,0.00021095,3]
[334622634,1723356654016,-3564.94,0.00021095,3]
[334622635,1723356654027,-661.55,0.00021095,3]
[334622636,1723356654039,-1748.01,0.00021095,3]
[334622637,1723356654048,-2048.71,0.00021095,3]
[334622638,1723356654058,-500.0,0.00021095,3]
[334622639,1723356654067,-2158.11,0.00021095,3]
[334622640,1723356654077,-500.0,0.00021095,3]
[334622641,1723356654087,-550.84,0.00021095,3]
[334622642,1723356654097,-536.37,0.00021095,3]
[334622643,1723356654106,-244.458801,0.00021095,2]
[334622644,1723356654115,-244.458801,0.00021095,2]
[334622645,1723356654124,-2355.16,0.00021095,3]
[334622646,1723356654133,-1182.96,0.00021095,3]
[334622647,1723356654142,-244.458801,0.00021095,2]
[334622648,1723356654152,-500.0,0.00021095,3]
[334622649,1723356654161,-244.458801,0.00021095,2]
[334622650,1723356654171,-1003.87,0.00021095,3]
[334622651,1723356654180,-192.75585,0.00021095,2]
[334622652,1723356654189,-192.75585,0.00021095,2]
[334622653,1723356654198,-500.0,0.00021095,3]
[334622654,1723356654207,-500.0,0.00021095,3]
[334622655,1723356654216,-500.0,0.00021095,3]
[334622656,1723356654225,-192.75585,0.00021095,2]
[334622657,1723356654234,-192.75585,0.00021095,2]
[334622658,1723356654244,-500.0,0.00021095,3]
[334622659,1723356654253,-1402.88,0.00021095,3]
[334622660,1723356654262,-500.0,0.00021095,3]
[334622661,1723356654271,-948.76,0.00021095,3]
[334622662,1723356654281,-1537.78,0.00021095,3]
[334622663,1723356654291,-940.1,0.00021095,3]
[334622664,1723356654300,-3112.83,0.00021095,3]
[334622665,1723356654309,-1606.4,0.00021095,3]
[334622666,1723356654318,-3010.59,0.00021095,3]
[334622667,1723356654327,-3482.42,0.00021095,3]
[334622668,1723356654337,-500.0,0.00021095,3]
[334622669,1723356654347,-790.810083,0.00021095,2]
[334622670,1723356654356,-790.810083,0.00021095,2]
[334622671,1723356654366,-1115.45,0.00021095,3]
[334622672,1723356654375,-500.0,0.00021095,3]
[334622673,1723356654385,-838.13,0.00021095,3]
[334622674,1723356654396,-790.810083,0.00021095,2]
[334622675,1723356654405,-790.810083,0.00021095,2]
[334622676,1723356654414,-500.0,0.00021095,3]
[334622677,1723356654423,-500.0,0.00021095,3]
[334622678,1723356654432,-500.0,0.00021095,3]
[334622679,1723356654442,-151.0,0.00021095,2]
[334622680,1723356654451,-151.0,0.00021095,2]
[334622681,1723356654461,-13994.82,0.00021095,3]
[334622682,1723356654470,-2436.58,0.00021095,3]
[334622683,1723356654479,-630.51,0.00021095,3]
[334622684,1723356654488,-8375.0,0.00021095,3]
[334622685,1723356654498,-500.0,0.00021095,3]
[334622686,1723356654507,-569.83076,0.00021095,2]
[334622687,1723356654516,-569.83076,0.00021095,2]
[334622688,1723356654526,-1733.03,0.00021095,3]
[334622689,1723356654536,-6556.52,0.00021095,3]
[334622690,1723356654545,-1128.07,0.00021095,3]
[334622691,1723356654554,-500.0,0.00021095,3]
[334622692,1723356654563,-569.83076,0.00021095,2]
[334622693,1723356654572,-500.0,0.00021095,3]
[334622694,1723356654582,-569.83076,0.00021095,2]
[334622695,1723356654593,-500.0,0.00021095,3]
[334622696,1723356654603,-997.97,0.00021095,3]
[334622697,1723356654612,-500.0,0.00021095,3]
[334622698,1723356654621,-476.11888176,0.00021095,3]
[334622699,1723356654630,-289.564474,0.00021095,2]
[334622700,1723356654640,-2458.02,0.00021095,3]
[334622701,1723356654650,-1855.54,0.00021095,3]
[334622702,1723356654659,-500.0,0.00021095,3]
[334622703,1723356654668,-500.0,0.00021095,3]
[334622704,1723356654678,-2029.96,0.00021095,3]
[334622705,1723356654688,-5736.55,0.00021095,3]
[334622706,1723356654697,-973.3,0.00021095,3]
[334622707,1723356654707,-500.0,0.00021095,3]
[334622708,1723356654716,-509.26830984,0.00021095,3]
[334622709,1723356654726,-1745.34,0.00021095,3]
[334622710,1723356654736,-500.0,0.00021095,3]
[334622711,1723356654745,-500.0,0.00021095,3]
[334622712,1723356654754,-500.0,0.00021095,3]
[334622713,1723356654763,-608.89514818,0.00021095,3]
[334622714,1723356654773,-500.0,0.00021095,3]
[334622715,1723356654783,-3450.1,0.00021095,3]
[334622716,1723356654793,-1883.0,0.00021095,3]
[334622717,1723356654802,-1284.01,0.00021095,3]
[334622718,1723356654811,-500.0,0.00021095,3]
[334622719,1723356654820,-500.0,0.00021095,3]
[334622720,1723356654829,-1283.38,0.00021095,3]
[334622721,1723356654840,-701.53,0.00021095,3]
[334622722,1723356654849,-647.38,0.00021095,3]
[334622723,1723356654858,-500.0,0.00021095,3]
[334622724,1723356654868,-651.88,0.00021095,3]
[334622725,1723356654877,-2445.87,0.00021095,3]
[334622726,1723356654886,-500.0,0.00021095,3]
[334622727,1723356654896,-1232.07,0.00021095,3]
[334622728,1723356654909,-500.0,0.00021095,3]
[334622729,1723356654918,-957.17,0.00021095,3]
[334622730,1723356654927,-500.0,0.00021095,3]
[334622731,1723356654936,-170.244031,0.00021095,2]
[334622732,1723356654946,-170.244031,0.00021095,2]
[334622733,1723356654955,-500.0,0.00021095,3]
[334622734,1723356654964,-694.6,0.00021095,3]
[334622735,1723356654976,-500.0,0.00021095,3]
[334622736,1723356654986,-500.0,0.00021095,3]
[334622737,1723356654996,-500.0,0.00021095,3]
[334622738,1723356655007,-170.244031,0.00021095,2]
[334622739,1723356655018,-170.244031,0.00021095,2]
[334622740,1723356655028,-1011.76,0.00021095,3]
[334622741,1723356655039,-500.0,0.00021095,3]
[334622742,1723356655050,-500.0,0.00021095,3]
[334622743,1723356655061,-500.0,0.00021095,3]
[334622744,1723356655072,-3000.0,0.000211,2]
[334622745,1723356655081,-244.458801,0.000211,2]
[334622746,1723356655097,-244.458801,0.000211,2]
[334622747,1723356655106,-192.75585,0.000211,2]
[334622748,1723356655115,-192.75585,0.000211,2]
[334622749,1723356655125,-790.810083,0.000211,2]
[334622750,1723356655135,-790.810083,0.000211,2]
[334622751,1723356655146,-151.0,0.000211,2]
[334622752,1723356655157,-3000.0,0.0002111,2]
[334622753,1723356655167,-647.5,0.0002111,2]
[334622754,1723356655176,-647.5,0.0002111,2]
[334622755,1723356655187,-192.984059,0.0002111,2]
[334622756,1723356655197,-192.984059,0.0002111,2]
[334622757,1723356655208,-3000.0,0.0002112,2]
[334622758,1723356655219,-3000.0,0.0002113,2]
[334622759,1723356655230,-3000.0,0.0002114,2]
[334622760,1723356655240,-3000.0,0.0002115,2]
[334622761,1723356655250,-151.0,0.00021157,2]
[334622762,1723356655259,-3000.0,0.0002116,2]
[334622763,1723356655268,-3000.0,0.0002117,2]
[334622764,1723356655279,-3000.0,0.0002118,2]
[334622765,1723356655290,-3000.0,0.0002119,2]
[334622766,1723356655300,-3000.0,0.000212,2]
[334622767,1723356655310,-160.0,0.00021203,3]
[334622768,1723356655319,-3000.0,0.0002121,2]
[334622769,1723356655328,-1129.03642084,0.0002122,2]
[334622770,1723356656457,-1765.03360075,0.00015708,2]
[334622771,1723356656468,-1536.01824547,0.00015746,2]
[334622772,1723356656480,-590.36148701,0.00015746,2]
[334622773,1723356656491,-728.15079492,0.0001872,2]
[334622774,1723356656503,-227.11491799,0.00020821,3]
[334622775,1723356656515,-923.00508201,0.00020821,3]
[334622776,1723356656528,-7857.32,0.00020821,3]
[334622777,1723356656537,-433.89051559,0.00021095,3]
[334622778,1723356656551,-7423.42948441,0.00021095,3]
[334622779,1723356656561,-1150.12,0.00021095,3]
[334622780,1723356656573,-1608.41853559,0.0002122,2]
[334622781,1723356656588,-262.54504357,0.0002122,2]
[334622782,1723356656597,-340.03108628,0.0002123,2]
[334622783,1723356656655,-2659.96891372,0.0002123,2]
[334622784,1723356656664,-3000.0,0.0002124,2]
[334622785,1723356656674,-3000.0,0.0002125,2]
[334622786,1723356656683,-3000.0,0.0002126,2]
[334622787,1723356656693,-3000.0,0.0002127,2]
[334622788,1723356656702,-3000.0,0.0002128,2]
[334622789,1723356656711,-3000.0,0.0002129,2]
[334622790,1723356656721,-3000.0,0.000213,2]
[334622791,1723356656730,-3000.0,0.0002131,2]
[334622792,1723356656879,-569.83076,0.0002131,2]